fUSD/lending_fUSD_20260115
["ID","MTS","AMOUNT","RATE_DAILY","PERIOD"]
[402018456,1768465844652,-150.0,0.00018,2]
[402018457,1768465844662,-150.0,0.00018,2]
[402018458,1768465844672,-659.86954868,0.00018,2]
[402018459,1768465844683,-2335.93824332,0.00018,2]
[402018460,1768465844699,-974368.39209297,0.00018,2]
[402018461,1768465844708,-151.0,0.00018,2]
[402018462,1768465844718,-277.29410085,0.00018,2]
[402018463,1768465844727,-2547.0562819,0.00018,2]
[402018464,1768465844736,-2178177.47478461,0.00018,2]
[402018465,1768465844829,-2630158.51194714,0.00018,2]
[402018466,1768465845352,-292.51816127,0.00017735,2]
[402018467,1768465845362,-179.80153873,0.00018,2]
[402018468,1768465845543,-6718.71277972,0.00018,2]
[402018469,1768465845603,-3501.92849186,0.00018,2]
[402018470,1768465845615,-547.02326863,0.00018,2]
[402018478,1768465846188,-780.0,0.00018,2]
[402018479,1768465846200,-1417.19973242,0.00018,2]
[402018480,1768465846238,-292.51816127,0.00017763,2]
[402018481,1768465846248,-636.06695722,0.00018,2]
[402018482,1768465846258,-538.9811538,0.00018,2]
[402018483,1768465846269,-598.44994,0.00018,2]
[402018484,1768465846503,-125493.2256858,0.00018,2]
[402018488,1768466390024,-300.0,0.0001666,2]
[402018489,1768466390046,-200.59026977,0.00016748,2]
[402018490,1768466390070,-3066.45433496,0.00016822,2]
[402018491,1768466390094,-300.0,0.00016822,2]
[402018492,1768466390118,-300.0,0.00016918,2]
[402018493,1768466390142,-11510.93,0.00016919,2]
[402018494,1768466390163,-150.0,0.00016921,2]
[402018495,1768466390185,-507.08916018,0.00016923,2]
[402018496,1768466405019,500.0,0.00016573,2]
[402018497,1768466431051,206.28,0.00016864,2]
[402018500,1768466527116,502.04121853,0.00016573,2]
[402018501,1768466568244,278.54,0.00019178,30]
[402018502,1768466591624,1852.42,0.000169,2]
[402018504,1768466664882,8387.03,0.0001691,2]
[402018505,1768466867919,439.42,0.00016975,2]
[402018513,1768467031708,-704.890961,0.00017189,2]
[402018514,1768467031801,-495.109039,0.00017189,2]
[402018515,1768467031811,-300.0,0.00017189,2]
[402018516,1768467031820,-285.55115038,0.0001719,2]
[402018517,1768467031832,-593.68559843,0.0001719,2]
[402018547,1768467032833,46944.62,0.0001684,2]
[402018551,1768467037924,-292.696336,0.0001719,2]
[402018552,1768467037984,-975.13,0.0001719,2]
[402018553,1768467037999,-1092.93691519,0.0001719,2]
[402018554,1768467038011,-688.13573429,0.0001719,2]
[402018555,1768467038024,-300.0,0.00017499,2]
[402018556,1768467038036,-300.0,0.00017499,2]
[402018557,1768467038048,-742.89242238,0.000175,2]
[402018558,1768467038063,-990.98677168,0.000175,2]
[402018559,1768467039796,-234.12080594,0.000175,2]
[402018560,1768467039808,-190.49149004,0.00017639,2]
[402018561,1768467039822,-319.8126461,0.00017639,2]
[402018562,1768467039834,-500.0,0.00017639,2]
[402018563,1768467039845,-500.0,0.00017639,2]
[402018564,1768467039857,-6151.13264166,0.0001764,2]
[402018565,1768467039869,-87806.7174,0.00017673,2]
[402018566,1768467039880,-152.76518378,0.00017699,2]
[402018567,1768467039891,-500.0,0.00017699,2]
[402018568,1768467039903,-1001.0,0.00017699,2]
[402018569,1768467039915,-152.07716114,0.00017699,2]
[402018570,1768467039927,-500.0,0.00017754,2]
[402018571,1768467039942,-1001.0,0.00017754,2]
[402018572,1768467039955,-174.61919142,0.00017759,2]
[402018573,1768467039966,-322.6107,0.00017759,2]
[402018574,1768467039977,-1174.96,0.0001777,2]
[402018575,1768467039988,-500.23632022,0.00017773,2]
[402018576,1768467040000,-500.3472977,0.00017773,2]
[402018577,1768467040012,-572.43155683,0.00017773,2]
[402018578,1768467040023,-233.81796729,0.00017773,2]
[402018579,1768467040036,-169.26751175,0.00017773,2]
[402018580,1768467040048,-1548.49604718,0.000178,2]
[402018581,1768467040061,-212.3328,0.000178,2]
[402018582,1768467040073,-182.82385082,0.000178,2]
[402018583,1768467040084,-500.0,0.00017809,2]
[402018584,1768467040097,-1001.0,0.00017809,2]
[402018585,1768467040110,-1548.49604715,0.00017811,2]
[402018586,1768467040125,-537.13208,0.0001782,2]
[402018587,1768467040137,-537.13209,0.0001782,2]
[402018588,1768467040149,-150.0,0.00017821,2]
[402018589,1768467040161,-1548.49604715,0.00017822,2]
[402018590,1768467040173,-3000.0,0.00017824,2]
[402018591,1768467040187,-750.0,0.00017824,2]
[402018592,1768467040201,-3000.0,0.00017824,2]
[402018593,1768467040214,-3117.2381674,0.00017824,2]
[402018594,1768467040228,-574.12855637,0.00017824,2]
[402018595,1768467040238,-721.12765535,0.00017824,2]
[402018596,1768467040249,-500.0,0.00017824,2]
[402018597,1768467040260,-157.05333065,0.00017824,2]
[402018598,1768467040269,-3000.0,0.00017824,2]
[402018599,1768467040279,-1056.37014812,0.00017824,2]
[402018600,1768467040289,-2500.0,0.00017824,2]
[402018601,1768467040298,-2500.0,0.00017824,2]
[402018602,1768467040307,-2500.0,0.00017824,2]
[402018604,1768467040316,-3000.0,0.00017824,2]
[402018605,1768467040325,-2500.0,0.00017824,2]
[402018606,1768467040334,-3000.0,0.00017824,2]
[402018607,1768467040343,-2500.0,0.00017824,2]
[402018608,1768467040352,-3000.0,0.00017824,2]
[402018609,1768467040361,-2500.0,0.00017824,2]
[402018610,1768467040371,-3000.0,0.00017824,2]
[402018611,1768467040379,-2500.0,0.00017824,2]
[402018612,1768467040389,-3000.0,0.00017824,2]
[402018613,1768467040398,-2500.0,0.00017824,2]
[402018614,1768467040407,-3000.0,0.00017824,2]
[402018615,1768467040416,-2356.73611531,0.00017824,2]
[402018616,1768467040425,-620.0,0.00017824,2]
[402018617,1768467040435,-1000.0,0.00017824,2]
[402018618,1768467040444,-1000.0,0.00017824,2]
[402018619,1768467040452,-1000.0,0.00017824,2]
[402018620,1768467040461,-256.45376075,0.00017824,2]
[402018621,1768467040471,-223.03,0.00017824,2]
[402018622,1768467040480,-537.13209,0.0001783,2]
[402018623,1768467040490,-1548.49604715,0.00017833,2]
[402018624,1768467040499,-500.0,0.00017835,2]
[402018625,1768467041023,-1548.49604715,0.00017844,2]
[402018626,1768467041057,-1548.49604715,0.00017856,2]
[402018627,1768467041081,-537.13209,0.0001786,2]
[402018628,1768467041098,-512.72000291,0.00017863,2]
[402018629,1768467041110,-1001.0,0.00017863,2]
[402018630,1768467041120,-1548.49604715,0.00017867,2]
[402018631,1768467041129,-1548.49604715,0.00017878,2]
[402018632,1768467041139,-537.13208,0.0001788,2]
[402018633,1768467041151,-1781.04684722,0.00017886,2]
[402018634,1768467041160,-4700.21080874,0.00017886,2]
[402018635,1768467041169,-8291.7290004,0.00017886,2]
[402018636,1768467041178,-12403.93068886,0.00017886,2]
[402018637,1768467041188,-16782.9552,0.00017886,2]
[402018638,1768467041198,-1548.49604715,0.00017889,2]
[402018639,1768467041206,-475.7,0.0001789,2]
[402018640,1768467041216,-475.7,0.0001789,2]
[402018641,1768467041225,-475.7,0.0001789,2]
[402018642,1768467041234,-475.7,0.0001789,2]
[402018643,1768467041243,-475.7,0.0001789,2]
[402018644,1768467041252,-10000.0,0.000179,2]
[402018645,1768467041262,-1548.49604715,0.000179,2]
[402018646,1768467041271,-3667.2171472,0.000179,2]
[402018647,1768467041281,-299.47014422,0.000179,2]
[402018648,1768467041291,-1325.8507023,0.000179,2]
[402018649,1768467041300,-336.48922396,0.000179,2]
[402018650,1768467041309,-3903.0,0.000179,2]
[402018651,1768467041319,-537.13209,0.0001791,2]
[402018652,1768467041329,-1001.0,0.00017918,2]
[402018653,1768467041338,-1001.0,0.00017973,2]
[402018654,1768467041347,-169.919,0.0001799,2]
[402018655,1768467041356,-2619.591,0.0001799,2]
[402018656,1768467041366,-1092.1928398,0.00017997,2]
[402018657,1768467041375,-4793.8440187,0.00017997,2]
[402018658,1768467041385,-447.88452296,0.00017999,2]
[402018659,1768467041394,-1789.74655374,0.00017999,2]
[402018660,1768467041404,-500.0,0.00017999,2]
[402018661,1768467041413,-500.0,0.00017999,2]
[402018662,1768467041423,-611.68071292,0.00017999,2]
[402018663,1768467041433,-500.0,0.00017999,2]
[402018664,1768467041442,-500.0,0.00017999,2]
[402018665,1768467041451,-300.0,0.00017999,2]
[402018666,1768467041461,-487.00816517,0.00017999,2]
[402018667,1768467041470,-500.0,0.00017999,2]
[402018668,1768467041480,-500.0,0.00017999,2]
[402018669,1768467041489,-208.77155751,0.00017999,2]
[402018670,1768467041497,-290.51711106,0.00017999,2]
[402018671,1768467041506,-500.0,0.00017999,2]
[402018672,1768467041515,-565.14633258,0.00017999,2]
[402018673,1768467041525,-500.0,0.00017999,2]
[402018674,1768467041534,-500.0,0.00017999,2]
[402018675,1768467041544,-500.0,0.00017999,2]
[402018676,1768467041553,-500.0,0.00017999,2]
[402018677,1768467041563,-500.0,0.00017999,2]
[402018678,1768467041572,-500.0,0.00017999,2]
[402018679,1768467041581,-500.0,0.00017999,2]
[402018680,1768467041590,-500.0,0.00017999,2]
[402018681,1768467041599,-500.0,0.00017999,2]
[402018682,1768467041608,-500.0,0.00017999,2]
[402018683,1768467041618,-500.0,0.00017999,2]
[402018684,1768467041627,-500.0,0.00017999,2]
[402018685,1768467041637,-500.0,0.00017999,2]
[402018686,1768467041646,-500.0,0.00017999,2]
[402018687,1768467041655,-500.0,0.00017999,2]
[402018688,1768467041664,-500.0,0.00017999,2]
[402018689,1768467041673,-500.0,0.00017999,2]
[402018690,1768467041683,-500.0,0.00017999,2]
[402018691,1768467041692,-500.0,0.00017999,2]
[402018692,1768467041701,-500.0,0.00017999,2]
[402018693,1768467041710,-500.0,0.00017999,2]
[402018694,1768467041719,-500.0,0.00017999,2]
[402018695,1768467041728,-500.0,0.00017999,2]
[402018696,1768467041737,-500.0,0.00017999,2]
[402018697,1768467041746,-500.0,0.00017999,2]
[402018698,1768467041754,-500.0,0.00017999,2]
[402018699,1768467041763,-500.0,0.00017999,2]
[402018700,1768467041772,-500.0,0.00017999,2]
[402018701,1768467041781,-500.0,0.00017999,2]
[402018702,1768467041790,-500.0,0.00017999,2]
[402018703,1768467041799,-500.0,0.00017999,2]
[402018704,1768467041808,-500.0,0.00017999,2]
[402018705,1768467041817,-511.44011499,0.00017999,2]
[402018706,1768467041826,-500.0,0.00017999,2]
[402018707,1768467041835,-500.0,0.00017999,2]
[402018708,1768467041846,-500.0,0.00017999,2]
[402018709,1768467041855,-500.0,0.00017999,2]
[402018710,1768467041864,-500.0,0.00017999,2]
[402018711,1768467041873,-390.16001277,0.00017999,2]
[402018712,1768467041883,-2930801.34509556,0.00018,2]
[402018713,1768467041903,-6976.56737627,0.00018,2]
[402018714,1768467041914,-1184.18960059,0.00018,2]
[402018715,1768467041925,-4119.45280101,0.00018,2]
[402018716,1768467042045,-71455.50487635,0.00018,2]
[402018717,1768467042057,-20351.06376926,0.00018,2]
[402018718,1768467042068,-278.33381412,0.00018,2]
[402018719,1768467042079,-4618.87834935,0.00018,2]
[402018720,1768467042090,-418.11407546,0.00018,2]
[402018721,1768467042105,-843.75287204,0.00018,2]
[402018722,1768467042120,-1002.14614419,0.00018,2]
[402018723,1768467042134,-962.75,0.00018,2]
[402018727,1768467042827,-44950.0,0.00018,2]
[402018728,1768467042840,-453.0,0.00018,2]
[402018729,1768467042985,-1832.67330149,0.00018,2]
[402018730,1768467042997,-384.996,0.00018,2]
[402018731,1768467043040,-10340.4330353,0.00018,2]
[402018732,1768467043069,-35612.71908417,0.00018,2]
[402018733,1768467043081,-773.17359864,0.00018,2]
[402018734,1768467043094,-3131.51131072,0.00018,2]
[402018735,1768467043149,-305.43973936,0.00018,2]
[402018741,1768467045713,-6488.54668878,0.00018,2]
[402018742,1768467045820,-4345.56857318,0.00018,2]
[402018743,1768467045927,-4406.05912286,0.00018,2]
[402018744,1768467070012,-159.0,0.00017999,2]
[402018745,1768467071381,249.5584535,0.000179,2]
[402018746,1768467071623,1969.69624537,0.000178,2]
[402018747,1768467082400,619.54389977,0.00017999,2]
[402018749,1768467093399,2095.673,0.00017899,2]
[402018750,1768467093438,169.919,0.00017899,2]
[402018751,1768467099854,10000.0,0.000179,2]
[402018752,1768467100599,166.66,0.00016787,2]
[402018753,1768467100648,166.66,0.00017141,2]
[402018754,1768467100701,166.66,0.00017494,2]
[402018755,1768467100732,159.41833541,0.000179,2]
[402018756,1768467100923,166.66,0.00017847,2]
[402018757,1768467111141,500.0,0.00017899,2]
[402018758,1768467111173,500.0,0.00017899,2]
[402018759,1768467111208,500.0,0.00017899,2]
[402018760,1768467111238,500.0,0.00017899,2]
[402018761,1768467111275,500.0,0.00017899,2]
[402018762,1768467111316,500.0,0.00017899,2]
[402018763,1768467111346,568.16415125,0.00017899,2]
[402018764,1768467111379,500.0,0.00017899,2]
[402018765,1768467111421,500.0,0.00017899,2]
[402018766,1768467111454,500.0,0.00017899,2]
[402018767,1768467111490,500.0,0.00017899,2]
[402018768,1768467111534,500.0,0.00017899,2]
[402018769,1768467111563,500.0,0.00017899,2]
[402018770,1768467111610,500.0,0.00017899,2]
[402018771,1768467111721,500.0,0.00017899,2]
[402018772,1768467111757,500.0,0.00017899,2]
[402018773,1768467111788,500.0,0.00017899,2]
[402018774,1768467111820,500.0,0.00017899,2]
[402018775,1768467111849,500.0,0.00017899,2]
[402018776,1768467111884,500.0,0.00017899,2]
[402018777,1768467111912,500.0,0.00017899,2]
[402018778,1768467111951,500.0,0.00017899,2]
[402018779,1768467111980,500.0,0.00017899,2]
[402018780,1768467112009,500.0,0.00017899,2]
[402018781,1768467112089,500.0,0.00017899,2]
[402018782,1768467112134,500.0,0.00017899,2]
[402018783,1768467112362,500.0,0.00017899,2]
[402018784,1768467112405,500.0,0.00017899,2]
[402018785,1768467112454,500.0,0.00017899,2]
[402018786,1768467112485,500.0,0.00017899,2]
[402018787,1768467112519,500.0,0.00017899,2]
[402018788,1768467112557,500.0,0.00017899,2]
[402018789,1768467112605,500.0,0.00017899,2]
[402018790,1768467112641,500.0,0.00017899,2]
[402018791,1768467113870,500.0,0.00017899,2]
[402018792,1768467121977,300.0,0.00017999,2]
[402018793,1768467125722,215.31928734,0.00017899,2]
[402018794,1768467128395,500.0,0.00016573,2]
[402018795,1768467128430,500.0,0.00016573,2]
[402018796,1768467128943,500.0,0.00016573,2]
[402018797,1768467129077,500.0,0.00016573,2]
[402018798,1768467129139,500.0,0.00016573,2]
[402018799,1768467131583,500.0,0.00016573,2]
[402018800,1768467131798,372.65918657,0.00016573,2]
[402018801,1768467132651,602.27430054,0.00017989,2]
[402018802,1768467136865,503.82347993,0.00016573,2]
[402018803,1768467138196,500.0,0.00016573,2]
[402018804,1768467138546,166.42926011,0.00016573,2]
[402018805,1768467142022,322.6107,0.00017989,2]
[402018806,1768467149982,574.12855637,0.00017989,2]
[402018807,1768467150829,744.45685524,0.000179,2]
[402018808,1768467155477,1000.0,0.00017633,2]
[402018809,1768467172472,159.97086945,0.000179,2]
[402018810,1768467186614,500.0,0.00016573,2]
[402018811,1768467186703,500.0,0.00016573,2]
[402018812,1768467194745,131713.83943571,0.00017673,2]
[402018840,1768467912922,208.26,8.298e-05,2]
[402018884,1768467952163,221591.7927677,0.00030137,120]
[402018905,1768468031631,318.25,0.00024805,120]
[402018954,1768468189925,1845.16152759,0.00011109,2]
[402018955,1768468190755,4869.41046462,0.00011109,2]
[402018956,1768468191370,8507.85800779,0.00011109,2]
[402018957,1768468191402,82.35924146,0.00011109,2]
[402018958,1768468192093,9917.64075854,0.00011109,2]
[402018959,1768468192116,2932.81049919,0.00011109,2]
[402018960,1768468196105,-603.82896591,0.00013209,2]
[402018961,1768468198326,-190.354199,0.00013209,2]
[402018962,1768468201373,-1200.01159971,0.00013209,2]
[402018963,1768468205833,-500.0,0.00013208,2]
[402018964,1768468209667,-500.0,0.00013208,2]
[402018965,1768468211738,-200.0,0.00013208,2]
[402018966,1768468211761,-300.0,0.00013209,2]
[402018967,1768468213401,-198.17,0.00013209,2]
[402018968,1768468214921,-565.70718826,0.00013209,2]
[402018969,1768468215243,-14329.04064712,0.00013209,2]
[402018970,1768468215266,-259.0,0.00013209,2]
[402018980,1768468231847,-462.11065713,0.00014528,2]
[402018981,1768468231859,-612.35383556,0.00014528,2]
[402018982,1768468231910,-404.2205328,0.00014528,2]
[402018983,1768468231924,-201.31497451,0.00014528,2]
[402018984,1768468231935,-245.6839592,0.00014529,2]
[402018985,1768468232018,-54.3160408,0.00014529,2]
[402018986,1768468232027,-521.3058136,0.00015981,2]
[402018987,1768468232038,-404.53844161,0.00015981,2]
[402018993,1768468237976,-1186.30049256,0.00015981,2]
[402018994,1768468238024,-238.85525223,0.00015981,2]
[402018995,1768468238034,-159.63,0.00016447,2]
[402018996,1768468238045,-318.25,0.00016537,2]
[402018997,1768468238054,-196.89594249,0.00016573,2]
[402018998,1768468238064,-500.0,0.00016573,2]
[402018999,1768468238073,-502.87749989,0.00016573,2]
[402019000,1768468238082,-208.26,0.00016596,2]
[402019001,1768468238092,-1157.9,0.00016607,2]
[402019002,1768468238102,-4788.98317669,0.00016685,2]
[402019003,1768468238154,-7437.54682331,0.00016685,2]
[402019004,1768468238165,-150.0,0.00016826,2]
[402019005,1768468238181,-999.0,0.00016939,3]
[402019006,1768468238191,-33919.2214319,0.0001697,2]
[402019008,1768468240442,-467.85299186,0.0001697,2]
[402019009,1768468240454,-266.6244499,0.0001697,2]
[402019010,1768468240489,-796.87788394,0.0001697,2]
[402019011,1768468240504,-115372.7122424,0.0001697,2]
[402019012,1768468240517,-300.0,0.00017069,2]
[402019013,1768468240530,-582.19,0.0001707,2]
[402019014,1768468240540,-462.63,0.0001707,2]
[402019015,1768468240550,-5159.48,0.0001707,2]
[402019016,1768468240561,-9999.99,0.0001707,2]
[402019017,1768468240571,-2972.17,0.0001707,2]
[402019018,1768468240580,-9999.99,0.0001707,2]
[402019019,1768468240590,-333.56,0.00017099,2]
[402019020,1768468240600,-1174.96,0.00017099,2]
[402019021,1768468240609,-299.99,0.00017099,4]
[402019022,1768468240619,-999.99,0.00017099,2]
[402019023,1768468240628,-8935.33,0.00017099,2]
[402019024,1768468240638,-150.99,0.00017099,2]
[402019025,1768468240647,-499.99,0.00017099,2]
[402019026,1768468240656,-28280.8,0.00017099,2]
[402019027,1768468240665,-513.53,0.00017099,2]
[402019028,1768468240675,-9999.99,0.00017099,2]
[402019029,1768468240685,-578.20924308,0.00017099,2]
[402019030,1768468240695,-174.61919142,0.00017124,2]
[402019031,1768468240704,-322.6107,0.00017124,2]
[402019032,1768468240715,-1239.0,0.00017124,2]
[402019033,1768468240725,-3094.4,0.00017134,2]
[402019034,1768468240735,-200.7,0.00017244,2]
[402019035,1768468240745,-333.56,0.00017373,2]
[402019036,1768468240755,-200.0,0.00017537,2]
[402019037,1768468240765,-2957.08692651,0.00017562,2]
[402019038,1768468240775,-23367.3924,0.00017573,2]
[402019039,1768468240784,-2464.5875,0.00017573,2]
[402019040,1768468240793,-3292.0,0.00017579,2]
[402019041,1768468240803,-1305.35923962,0.00017599,2]
[402019042,1768468240812,-6151.13264166,0.0001764,2]
[402019043,1768468240821,-333.56,0.00017647,2]
[402019044,1768468240830,-620.0,0.00017662,2]
[402019045,1768468240839,-157.05333065,0.00017662,2]
[402019046,1768468240849,-721.12765535,0.00017662,2]
[402019047,1768468240858,-3000.0,0.00017662,2]
[402019048,1768468240867,-2000.0,0.00017662,2]
[402019049,1768468240877,-3000.0,0.00017662,2]
[402019050,1768468240887,-3000.0,0.00017662,2]
[402019051,1768468240897,-2000.0,0.00017662,2]
[402019052,1768468240906,-3000.0,0.00017662,2]
[402019053,1768468240916,-3000.0,0.00017662,2]
[402019054,1768468240925,-2000.0,0.00017662,2]
[402019055,1768468240935,-3000.0,0.00017662,2]
[402019056,1768468240944,-3000.0,0.00017662,2]
[402019057,1768468240953,-2000.0,0.00017662,2]
[402019058,1768468240963,-3117.2381674,0.00017662,2]
[402019059,1768468240972,-3000.0,0.00017662,2]
[402019060,1768468240982,-1190.60823039,0.00017662,2]
[402019061,1768468240991,-3000.0,0.00017662,2]
[402019062,1768468241001,-3000.0,0.00017662,2]
[402019063,1768468241010,-1000.0,0.00017662,2]
[402019064,1768468241019,-2356.73611531,0.00017662,2]
[402019065,1768468241028,-1000.0,0.00017662,2]
[402019066,1768468241038,-750.0,0.00017662,2]
[402019067,1768468241047,-2500.0,0.00017662,2]
[402019068,1768468241057,-2500.0,0.00017662,2]
[402019069,1768468241066,-2500.0,0.00017662,2]
[402019070,1768468241075,-2500.0,0.00017662,2]
[402019071,1768468241085,-2500.0,0.00017662,2]
[402019072,1768468241094,-2500.0,0.00017662,2]
[402019073,1768468241104,-2500.0,0.00017662,2]
[402019074,1768468241113,-2500.0,0.00017662,2]
[402019075,1768468241123,-500.0,0.00017662,2]
[402019076,1768468241133,-2500.0,0.00017662,2]
[402019077,1768468241142,-2500.0,0.00017662,2]
[402019078,1768468241152,-2500.0,0.00017662,2]
[402019079,1768468241161,-3000.0,0.00017662,2]
[402019080,1768468241171,-1056.37014812,0.00017662,2]
[402019081,1768468241181,-500.0,0.00017662,2]
[402019082,1768468241190,-574.12855637,0.00017662,2]
[402019083,1768468241199,-1000.0,0.00017662,2]
[402019084,1768468241209,-1000.0,0.00017662,2]
[402019085,1768468241218,-1000.0,0.00017662,2]
[402019086,1768468241228,-256.45376075,0.00017662,2]
[402019087,1768468241238,-500.0,0.00017672,2]
[402019088,1768468241247,-2200.457,0.00017672,2]
[402019089,1768468241256,-169.919,0.00017672,2]
[402019090,1768468241266,-6741.0,0.00017672,2]
[402019091,1768468241276,-150.0,0.00017672,2]
[402019092,1768468241285,-152.76518378,0.00017699,2]
[402019093,1768468241295,-500.0,0.00017699,2]
[402019094,1768468241305,-152.07716114,0.00017699,2]
[402019095,1768468241315,-500.0,0.00017754,2]
[402019096,1768468241324,-500.23632022,0.00017773,2]
[402019097,1768468241334,-500.3472977,0.00017773,2]
[402019098,1768468241343,-572.43155683,0.00017773,2]
[402019099,1768468241353,-233.81796729,0.00017773,2]
[402019100,1768468241363,-169.26751175,0.00017773,2]
[402019101,1768468241373,-500.0,0.00017809,2]
[402019102,1768468241382,-500.0,0.00017819,2]
[402019103,1768468241391,-214.85283,0.0001782,2]
[402019104,1768468241401,-214.85284,0.0001782,2]
[402019105,1768468241411,-214.85283,0.0001783,2]
[402019106,1768468241420,-214.85284,0.0001786,2]
[402019107,1768468241432,-512.72000291,0.00017863,2]
[402019108,1768468241443,-214.85284,0.0001788,2]
[402019109,1768468241454,-200.7,0.0001789,2]
[402019110,1768468241464,-500.0,0.00017899,2]
[402019111,1768468241475,-500.0,0.00017899,2]
[402019112,1768468241485,-500.0,0.00017899,2]
[402019113,1768468241496,-500.0,0.00017899,2]
[402019114,1768468241508,-500.0,0.00017899,2]
[402019115,1768468241519,-500.0,0.00017899,2]
[402019116,1768468241530,-500.0,0.00017899,2]
[402019117,1768468241540,-500.0,0.00017899,2]
[402019118,1768468241551,-10000.0,0.000179,2]
[402019119,1768468241563,-3667.2171472,0.000179,2]
[402019120,1768468241575,-1325.8507023,0.000179,2]
[402019121,1768468241585,-670.29240342,0.000179,2]
[402019122,1768468241596,-336.48922396,0.000179,2]
[402019123,1768468241606,-214.85283,0.0001791,2]
[402019124,1768468241616,-333.56,0.00017921,2]
[402019125,1768468241626,-582.19,0.00017923,2]
[402019126,1768468241636,-500.0,0.00017945,2]
[402019127,1768468241647,-500.0,0.00017998,2]
[402019128,1768468241656,-500.0,0.00017998,2]
[402019129,1768468241667,-500.0,0.00017999,2]
[402019130,1768468241678,-500.0,0.00017999,2]
[402019131,1768468241688,-611.68071292,0.00017999,2]
[402019132,1768468241698,-428.29410085,0.00017999,2]
[402019133,1768468241708,-151.0,0.00017999,2]
[402019134,1768468241718,-300.0,0.00017999,2]
[402019135,1768468241728,-487.00816517,0.00017999,2]
[402019136,1768468241739,-290.51711106,0.00017999,2]
[402019137,1768468241749,-500.0,0.00017999,2]
[402019138,1768468241759,-500.0,0.00017999,2]
[402019139,1768468241770,-500.0,0.00017999,2]
[402019140,1768468241780,-208.77155751,0.00017999,2]
[402019141,1768468241790,-500.0,0.00017999,2]
[402019142,1768468241800,-500.0,0.00017999,2]
[402019143,1768468241811,-379.28316265,0.00017999,2]
[402019144,1768468241821,-500.0,0.00017999,2]
[402019145,1768468241831,-500.0,0.00017999,2]
[402019146,1768468241841,-500.0,0.00017999,2]
[402019147,1768468241851,-500.0,0.00017999,2]
[402019148,1768468241861,-500.0,0.00017999,2]
[402019149,1768468241871,-500.0,0.00017999,2]
[402019150,1768468241881,-500.0,0.00017999,2]
[402019151,1768468241891,-500.0,0.00017999,2]
[402019152,1768468241901,-500.0,0.00017999,2]
[402019153,1768468241912,-500.0,0.00017999,2]
[402019154,1768468241922,-500.0,0.00017999,2]
[402019155,1768468241932,-500.0,0.00017999,2]
[402019156,1768468241942,-500.0,0.00017999,2]
[402019157,1768468241952,-500.0,0.00017999,2]
[402019158,1768468241962,-500.0,0.00017999,2]
[402019159,1768468241972,-500.0,0.00017999,2]
[402019160,1768468241982,-500.0,0.00017999,2]
[402019161,1768468241992,-500.0,0.00017999,2]
[402019162,1768468242002,-500.0,0.00017999,2]
[402019163,1768468242012,-500.0,0.00017999,2]
[402019164,1768468242022,-500.0,0.00017999,2]
[402019165,1768468242032,-500.0,0.00017999,2]
[402019166,1768468242042,-500.0,0.00017999,2]
[402019167,1768468242051,-500.0,0.00017999,2]
[402019168,1768468242062,-500.0,0.00017999,2]
[402019169,1768468242071,-500.0,0.00017999,2]
[402019170,1768468242082,-500.0,0.00017999,2]